bitfinex/quotes_ETHUSD_20260217
["timestamp","ask_amount","ask_price","bid_price","bid_amount"]
[1771315561372,0.0011,1991.8,1991.5,0.1528326]
[1771315561574,1.25486918,1992.3,1991.7,0.1528326]
[1771315561878,1.71429508,1992.4,1991.7,0.1528326]
[1771315562042,1.25475074,1992.5,1991.7,0.1528326]
[1771315563264,1.71422824,1992.5,1991.7,0.1528326]
[1771315563650,1.71422824,1992.5,1991.7,1.40800256]
[1771315563869,1.71422824,1992.5,1991.7,1.25516996]
[1771315564184,1.71422824,1992.5,1991.8,0.1528326]
[1771315564341,1.71422824,1992.5,1991.9,0.1528326]
[1771315564342,1.71420447,1992.5,1991.9,0.1528326]
[1771315564940,0.4594775,1992.4,1991.7,0.1528326]
[1771315565241,0.4594775,1992.4,1991.5,1.4081281]
[1771315565465,0.4594775,1992.4,1991.6,0.1528326]
[1771315565664,1.25483109,1992.3,1991.7,1.40804171]
[1771315565868,5.4786119,1992.4,1991.7,1.40804171]
[1771315565869,1.71429531,1992.4,1991.8,0.1528326]
[1771315568575,1.71429531,1992.4,1991.6,6.81187219]
[1771315568876,0.0011,1992.3,1991.7,0.1528326]
[1771315570189,0.4605775,1992.3,1991.6,5.40381234]
[1771315570480,0.4605775,1992.3,1991.5,0.1528326]
[1771315570846,0.4605775,1992.3,1991.4,1.40817623]
[1771315571161,0.4605775,1992.3,1991.4,0.1528326]
[1771315571366,0.4605775,1992.3,1991.1,5.0222001]
[1771315571367,0.4594775,1992.1,1991.1,1.25555612]
[1771315571567,0.4594775,1992.1,1991.1,1.40838872]
[1771315571949,0.4594775,1992.1,1991.2,0.1528326]
[1771315572696,1.71449758,1992.0,1991.2,1.40829833]
[1771315573350,0.4594775,1991.9,1991.2,0.1528326]
[1771315575180,1.25514609,1991.8,1991.2,0.1528326]
[1771315575378,0.47643919,1991.7,1991.0,1.40843291]
[1771315575580,0.47643919,1991.7,1991.0,0.1528326]
[1771315575882,0.47643919,1991.7,1991.0,1.40847921]
[1771315576785,0.47643919,1991.7,1991.1,0.1528326]
[1771315576974,1.25514609,1991.8,1991.1,0.1528326]
[1771315577479,0.47643919,1992.1,1991.3,0.1528326]
[1771315579788,1.25502008,1992.0,1991.3,0.1528326]
[1771315580085,0.47643919,1991.9,1991.3,0.1528326]
[1771315580656,0.47643919,1991.9,1990.9,1.25567559]
[1771315580887,0.47643919,1991.9,1990.9,0.1528326]
[1771315581186,0.47643919,1991.9,1990.9,1.40854339]
[1771315581487,0.47643919,1991.9,1991.0,0.1528326]
[1771315581896,0.47643919,1991.7,1991.4,0.001]
[1771315583968,1.25527214,1991.6,1991.4,0.001]
[1771315584269,5.49751099,1991.7,1991.4,0.001]
[1771315584270,1.25524875,1991.7,1991.4,0.001]
[1771315586262,0.47643919,1991.8,1991.4,0.001]
[1771315586885,0.47643919,1992.1,1991.4,0.001]
[1771315589202,0.47643919,1991.9,1991.4,0.001]
[1771315591269,1.25514609,1991.8,1991.4,0.001]
[1771315591470,0.47643919,1991.7,1991.4,0.001]
[1771315593401,1.25527214,1991.6,1991.4,0.001]
[1771315594096,1.25527214,1991.6,1991.3,0.001]
[1771315594584,1.25527214,1991.6,1991.4,0.001]
[1771315596197,1.25527214,1991.6,1991.3,0.001]
[1771315598976,0.47643919,1991.5,1991.3,0.001]
[1771315599281,0.47643919,1991.5,1991.1,0.001]
[1771315600289,1.25539821,1991.4,1991.1,0.001]
[1771315603112,0.47643919,1991.3,1991.1,0.001]
[1771315603300,1.25539821,1991.4,1991.1,0.001]
[1771315604817,5.02159284,1991.5,1991.1,0.001]
[1771315605311,5.48306726,1991.5,1991.1,0.001]
[1771315607610,5.48306726,1991.5,1991.2,0.001]
[1771315608012,5.48416726,1991.5,1991.2,0.001]
[1771315608202,5.48416726,1991.5,1991.1,0.001]
[1771315609702,0.46147442,1991.4,1991.1,0.001]
[1771315610010,5.02269284,1991.5,1991.1,0.001]
[1771315610213,5.47319466,1991.5,1991.1,0.001]
[1771315610389,0.45050182,1991.4,1991.1,0.001]
[1771315612818,1.25546125,1991.3,1991.1,0.001]
[1771315614296,1.25546125,1991.3,1990.9,0.001]
[1771315619622,1.25546125,1991.3,1990.9,0.1538326]
[1771315620225,5.47319466,1991.5,1990.9,0.1538326]
[1771315620226,0.0011,1991.5,1991.0,5.40176392]
[1771315620545,0.0011,1991.5,1991.1,0.1528326]
[1771315621440,0.0011,1991.3,1991.1,0.1528326]
[1771315621625,0.0011,1991.5,1991.1,0.1528326]
[1771315621826,1.22744858,1991.7,1991.1,0.1528326]
[1771315622945,0.0011,1991.8,1991.2,0.1528326]
[1771315623626,0.0011,1991.8,1991.4,0.1528326]
[1771315624513,0.0011,1991.8,1991.2,0.1528326]
[1771315626749,0.45160182,1991.8,1991.0,0.1538326]
[1771315626929,0.45050182,1991.7,1991.0,0.1538326]
[1771315627124,0.45050182,1991.7,1991.0,0.001]
[1771315627332,0.45050182,1991.5,1991.0,0.001]
[1771315628219,0.45050182,1991.5,1990.9,0.001]
[1771315628962,0.45050182,1991.3,1990.9,0.001]
[1771315630744,1.2555243,1991.2,1990.9,0.001]
[1771315631334,0.45050182,1991.1,1990.9,0.001]
[1771315631817,0.45050182,1991.1,1990.7,0.001]
[1771315632024,0.45050182,1991.1,1990.5,0.001]
[1771315632827,1.25565042,1991.0,1990.5,0.001]
[1771315634046,1.25565042,1991.0,1990.6,0.001]
[1771315636253,1.70613599,1991.1,1990.6,0.001]
[1771315636431,1.70613599,1991.1,1990.6,0.1538326]
[1771315636432,1.25563417,1991.1,1990.6,0.1538326]
[1771315637749,1.25557028,1991.2,1990.6,0.1538326]
[1771315640057,1.25557028,1991.2,1990.5,0.001]
[1771315640258,0.5,1991.1,1990.5,0.001]
[1771315642263,1.75565042,1991.0,1990.5,0.001]
[1771315642859,0.5,1990.9,1990.5,0.001]
[1771315644275,1.25565042,1991.0,1990.5,0.001]
[1771315646062,1.25565042,1991.0,1990.6,0.001]
[1771315646434,1.25675042,1991.0,1990.6,0.001]
[1771315649869,1.75675042,1991.0,1990.6,0.001]
[1771315650051,1.75675042,1991.0,1990.4,0.001]
[1771315650052,0.5,1990.9,1990.4,0.001]
[1771315652364,0.0011,1991.0,1990.4,0.001]
[1771315658390,0.0011,1991.0,1990.5,0.001]
[1771315670098,0.0011,1990.9,1990.5,0.001]
[1771315673407,0.5011,1990.9,1990.3,0.001]
[1771315676908,1.25577657,1990.8,1990.3,0.001]
[1771315677281,0.0011,1990.9,1990.3,0.001]
[1771315678002,1.25682212,1990.9,1990.3,0.001]
[1771315678613,1.75682212,1990.9,1990.3,0.001]
[1771315678918,1.25583965,1990.7,1990.3,0.001]
[1771315681914,1.75583965,1990.7,1990.3,0.001]
[1771315682084,1.75583965,1990.7,1990.4,0.001]
[1771315685099,0.0011,1990.8,1990.4,0.001]
[1771315686229,1.25675042,1991.0,1990.4,0.001]
[1771315686230,1.22895042,1991.0,1990.4,0.001]
[1771315686599,1.25673134,1991.1,1990.4,0.001]
[1771315686918,1.25631156,1991.7,1991.0,5.40595622]
[1771315687218,1.25631156,1991.7,1991.1,1.25558736]
[1771315687422,0.0011,1991.7,1991.1,1.25558736]
[1771315687620,0.5,1991.6,1990.4,0.001]
[1771315687915,0.5,1991.4,1990.5,1.25594467]
[1771315690415,0.5,1991.4,1990.4,1.25702893]
[1771315690416,0.5,1991.2,1990.4,1.25702893]
[1771315692917,1.25558736,1991.1,1990.4,1.25702893]
[1771315693935,1.25558736,1991.1,1990.5,0.001]
[1771315695521,0.5,1991.0,1990.5,0.001]
[1771315697718,1.75567148,1991.0,1990.5,0.001]
[1771315706260,1.75567148,1991.0,1990.6,0.001]
[1771315708458,0.5,1990.9,1990.6,0.001]
[1771315711814,1.25567148,1991.0,1990.6,0.001]
[1771315712548,0.0011,1991.2,1990.6,0.001]
[1771315713064,0.0011,1991.2,1990.9,5.40518257]
[1771315713827,0.0011,1991.2,1990.9,6.66083693]
[1771315716881,0.0011,1991.4,1990.9,6.66083693]
[1771315717561,0.0011,1991.6,1991.3,5.40518257]
[1771315717781,0.0011,1991.8,1991.3,5.40518257]
[1771315717944,0.0011,1991.9,1991.5,5.40518257]
[1771315718257,0.0011,1992.0,1991.6,1.25527214]
[1771315719027,0.0011,1992.0,1991.7,5.40518257]
[1771315719229,0.0011,1992.3,1991.7,5.40518257]
[1771315721527,0.0011,1992.3,1991.8,1.25514609]
[1771315725245,0.0011,1992.3,1991.7,10.42576696]
[1771315725246,0.5011,1992.3,1991.7,1.25518506]
[1771315725462,0.5011,1992.2,1991.7,1.25518506]
[1771315726244,0.5011,1992.2,1991.3,5.40518257]
[1771315726452,0.5,1992.0,1991.1,1.2555243]
[1771315726654,1.75507897,1992.0,1991.1,5.40518257]
[1771315727831,0.5,1992.0,1991.1,5.40518257]
[1771315728472,5.02080005,1992.2,1991.9,5.40518257]
[1771315728473,0.0011,1992.2,1991.9,5.40518257]
[1771315728648,0.0011,1992.3,1992.0,1.25502008]
[1771315728857,0.0011,1992.3,1991.9,1.25503729]
[1771315729334,5.51671186,1993.4,1992.3,5.40518257]
[1771315729533,0.5,1993.7,1992.7,5.40518257]
[1771315729741,0.5,1993.6,1992.5,5.40518257]
[1771315729950,0.5,1993.4,1992.4,8.040501]
[1771315730464,0.5,1993.4,1992.3,5.40518257]
[1771315730758,0.5,1993.4,1992.4,1.25476811]
[1771315730759,1.75419333,1993.4,1992.4,1.25476811]
[1771315731630,5.90518257,1993.3,1992.3,1.25480099]
[1771315731868,5.90518257,1993.3,1992.2,5.01947526]
[1771315731869,0.5,1993.0,1992.0,5.02002732]
[1771315732157,0.5,1993.3,1992.0,5.02002732]
[1771315732351,0.5,1993.3,1992.1,22.993148]
[1771315732965,1.25426449,1993.2,1992.2,1.25489408]
[1771315733265,0.5,1993.1,1992.2,1.25489408]
[1771315733865,5.01655463,1993.6,1992.2,1.25489408]
[1771315733866,0.5,1993.5,1992.2,1.25489408]
[1771315734071,1.75413865,1993.4,1992.3,27.566993]
[1771315734363,1.75413865,1993.4,1992.3,25.926073]
[1771315734945,1.75413865,1993.4,1992.4,1.25476811]
[1771315735670,1.25413865,1993.4,1992.4,1.25476811]
[1771315736471,5.51617082,1993.6,1992.4,1.25476811]
[1771315736774,1.25412534,1993.5,1992.4,1.25476811]
[1771315737470,1.7540583,1993.6,1992.1,30.0]
[1771315739473,1.7540583,1993.6,1992.2,1.25489408]
[1771315739683,1.7540583,1993.6,1992.3,30.0]
[1771315740176,1.7540583,1993.6,1992.4,30.0]
[1771315740350,1.7540583,1993.6,1992.4,33.84]
[1771315740549,1.7540583,1993.6,1992.5,27.860735]
[1771315741244,1.7540583,1993.6,1992.5,13.469844]
[1771315741245,0.5,1993.5,1992.5,13.469844]
[1771315741650,0.5,1993.3,1992.6,1.25464217]
[1771315741881,0.5,1993.3,1992.5,1.2546597]
[1771315742175,1.25412319,1993.5,1992.5,1.2546597]
[1771315742578,0.5,1993.4,1992.5,1.2546597]
[1771315743649,0.5,1993.2,1992.5,1.2546597]
[1771315744384,0.5,1993.2,1992.4,5.09472713]
[1771315745180,0.5,1993.2,1992.4,5.09472937]
[1771315745477,0.5,1993.2,1992.4,5.09572937]
[1771315745700,1.75432742,1993.1,1992.4,5.09572937]
[1771315746276,1.75432742,1993.1,1992.4,1.25572937]
[1771315746462,0.5,1993.0,1992.4,1.25329937]
[1771315747879,1.75440091,1993.0,1992.4,0.001]
[1771315750672,0.5,1992.9,1992.4,0.001]
[1771315754907,1.25451625,1992.8,1992.4,0.001]
[1771315755109,1.25451625,1992.8,1992.1,0.001]
[1771315755110,0.5,1992.7,1992.1,0.001]
[1771315756587,1.25451625,1992.8,1992.1,0.001]
[1771315757404,1.75451625,1992.8,1992.1,0.001]
[1771315757613,0.5,1992.7,1992.1,0.001]
[1771315758515,0.5,1992.7,1992.2,0.001]
[1771315759379,1.75461669,1992.7,1992.2,0.001]
[1771315761501,0.5,1992.6,1992.2,0.001]
[1771315763507,1.25470514,1992.5,1992.2,0.001]
[1771315764598,1.75470514,1992.5,1992.2,0.001]
[1771315764798,1.25470514,1992.5,1992.2,0.001]
[1771315765913,0.5,1992.5,1992.2,0.001]
[1771315767927,1.25476811,1992.4,1992.2,0.001]
[1771315770013,1.75476811,1992.4,1992.2,0.001]
[1771315770620,1.25476811,1992.4,1992.1,0.001]
[1771315770918,1.75476811,1992.4,1992.1,0.001]
[1771315771411,1.75476811,1992.4,1992.3,0.001]
[1771315771611,1.75476811,1992.4,1992.1,0.001]
[1771315771920,1.75476811,1992.4,1992.2,0.001]
[1771315772525,0.5,1992.2,1992.0,0.001]
[1771315772728,0.5,1992.2,1991.5,1.25533517]
[1771315773091,1.25476811,1992.4,1991.1,5.55107236]
[1771315773092,0.5,1992.0,1991.1,5.55107236]
[1771315773320,0.5,1992.0,1991.2,2.15919]
[1771315773624,0.5,1992.2,1991.2,2.15919]
[1771315773794,0.5,1992.2,1991.1,1.25558736]
[1771315774004,0.5,1992.2,1991.2,3.444349]
[1771315774325,0.5,1992.2,1991.2,2.163331]
[1771315774493,1.75495708,1992.1,1991.3,1.25546125]
[1771315776197,0.5,1992.0,1991.1,1.25554493]
[1771315776624,1.75508308,1991.9,1991.0,0.001]
[1771315780164,0.5,1991.6,1991.0,0.001]
[1771315781165,7.15273295,1991.9,1991.0,0.001]
[1771315781860,0.5,1991.8,1991.0,0.001]
[1771315782065,1.25520911,1991.7,1991.0,0.001]
[1771315784053,1.25520911,1991.7,1991.1,0.001]
[1771315786263,0.5,1991.7,1991.1,0.001]
[1771315788173,1.25524768,1991.7,1991.1,0.001]
[1771315790653,0.5,1991.6,1991.1,0.001]
[1771315791851,0.5,1991.4,1991.0,0.001]
[1771315793046,1.25546125,1991.3,1991.0,0.001]
[1771315793462,1.25546125,1991.3,1990.4,1.21582893]
[1771315795777,1.25546125,1991.3,1990.5,6.038751]
[1771315795949,1.25546125,1991.3,1990.4,1.21582893]
[1771315797161,1.24546125,1991.3,1990.4,1.21582893]
[1771315797575,1.7554484,1991.4,1990.5,2.566347]
[1771315797769,1.2554484,1991.4,1990.5,5.39764987]
[1771315798171,1.25539029,1991.5,1990.5,5.39864987]
[1771315798674,1.75649029,1991.5,1990.5,5.39384987]
[1771315799280,1.75649029,1991.5,1990.6,1.25590274]
[1771315800290,1.75649029,1991.5,1990.6,1.18590274]
[1771315801366,0.5011,1991.5,1990.6,1.18590274]
[1771315801578,0.0011,1991.5,1990.7,5.39764987]
[1771315801768,1.25643901,1991.5,1990.6,1.18590274]
[1771315801984,0.5,1991.4,1990.6,1.18590274]
[1771315803893,1.75539921,1991.4,1990.5,0.001]
[1771315804084,0.5,1991.4,1990.5,5.39864987]
[1771315805003,1.25648378,1991.5,1990.5,5.39864987]
[1771315805502,0.5,1991.4,1990.5,0.001]
[1771315807597,1.21570434,1991.3,1990.5,0.001]
[1771315808101,0.5,1991.2,1990.5,0.001]
[1771315808464,1.21570434,1991.3,1990.5,0.001]
[1771315809001,1.71570434,1991.3,1990.5,0.001]
[1771315810696,1.71570434,1991.3,1990.6,0.001]
[1771315810900,0.5,1991.2,1990.6,0.001]
[1771315811080,5.39764987,1990.9,1990.6,0.001]
[1771315811275,6.61445421,1991.3,1990.6,0.001]
[1771315811480,0.5,1991.2,1990.6,0.001]
[1771315812991,0.5,1991.0,1990.6,0.001]
[1771315814213,0.5,1990.8,1990.4,0.001]
[1771315814529,0.5,1990.6,1990.2,0.001]
[1771315815411,1.75596583,1990.5,1990.2,0.001]
[1771315816612,0.5,1990.5,1990.2,0.001]
[1771315817195,0.5,1990.4,1990.2,0.001]
[1771315818025,1.75601037,1990.5,1990.2,0.001]
[1771315818491,1.75597066,1990.5,1990.2,0.001]
[1771315819502,1.75577657,1990.8,1990.2,0.001]
[1771315820708,0.5,1990.8,1990.2,0.001]
[1771315820916,1.75577827,1990.8,1990.2,0.001]
[1771315821109,5.89764987,1990.7,1990.2,0.001]
[1771315821309,0.5,1990.6,1990.2,0.001]
[1771315823032,1.25596583,1990.5,1990.2,0.001]
[1771315823417,1.7559411,1990.6,1990.2,0.001]
[1771315824034,1.7559411,1990.6,1990.3,0.001]
[1771315825635,1.75577657,1990.8,1990.3,0.001]
[1771315826545,1.25575577,1990.9,1990.3,0.001]
[1771315827535,1.75575577,1990.9,1990.3,0.001]
[1771315828939,1.25569176,1991.0,1990.3,0.001]
[1771315830441,5.02243515,1991.1,1990.3,0.001]
[1771315830743,5.52243515,1991.1,1990.3,0.001]
[1771315831438,0.5,1991.1,1990.3,0.001]
[1771315831638,1.75660186,1991.3,1990.3,0.001]
[1771315832048,0.5011,1991.3,1990.3,0.001]
[1771315832215,0.5011,1991.3,1990.4,5.40640107]
[1771315832611,0.0011,1991.3,1990.5,1.25596583]
[1771315832848,0.0011,1991.3,1990.6,5.40640107]
[1771315833438,0.0011,1991.3,1990.5,1.25596583]
[1771315836049,0.0011,1991.2,1990.4,5.02386335]
[1771315837254,0.0011,1991.2,1990.3,5.02487032]
[1771315840758,0.0011,1991.2,1990.4,26.621104]
[1771315841663,0.0011,1991.3,1990.5,3.84]
[1771315841863,0.0011,1991.5,1990.5,30.0]
[1771315842157,0.0011,1991.5,1990.4,30.0]
[1771315842336,0.0011,1991.5,1990.5,9.2394]
[1771315842543,0.0011,1991.5,1990.7,30.0]
[1771315842860,0.0011,1991.6,1990.9,30.0]
[1771315843026,0.0011,1991.6,1990.9,28.480876]
[1771315843544,0.0011,1991.6,1990.9,24.408155]
[1771315843748,0.0011,1991.6,1990.9,16.733838]
[1771315845055,0.0011,1991.6,1991.0,1.25565042]
[1771315845258,0.0011,1991.6,1991.1,3.548136]
[1771315845755,0.0011,1991.6,1991.1,2.471346]
[1771315847152,0.0011,1991.6,1991.2,1.2555243]
[1771315848434,0.0011,1991.5,1991.2,1.2555243]
[1771315850363,0.0011,1991.5,1990.9,8.715687]
[1771315850566,0.0011,1991.5,1990.9,3.959686]
[1771315851963,0.0011,1991.5,1990.7,4.201275]
[1771315852541,0.0011,1991.5,1990.9,6.627442]
[1771315852762,0.0011,1991.6,1990.9,6.627442]
[1771315855085,0.0011,1991.6,1991.0,1.25565042]
[1771315855975,0.0011,1991.6,1991.1,5.39968022]
[1771315856886,0.0011,1991.6,1991.0,1.25565042]
[1771315856887,0.5011,1991.6,1991.0,1.25565042]
[1771315857185,0.5,1991.5,1991.0,1.25565042]
[1771315857565,0.5,1991.5,1990.6,1.25590274]
[1771315857756,0.5,1991.4,1990.5,1.25591619]
[1771315857954,1.2564029,1991.6,1990.5,1.25591619]
[1771315857955,0.5,1991.2,1990.5,1.25591619]
[1771315859461,0.5,1991.0,1990.4,0.001]
[1771315860186,0.5,1991.0,1990.6,0.001]
[1771315860683,0.5,1991.2,1990.6,0.001]
[1771315861056,0.5011,1991.4,1990.6,0.001]
[1771315861253,0.5011,1991.4,1990.7,5.39968022]
[1771315861458,0.0011,1991.4,1991.0,1.25565042]
[1771315862603,0.495,1991.7,1991.0,1.25565042]
[1771315863608,0.495,1991.7,1990.7,5.02323178]
[1771315863772,0.4975,1991.5,1990.6,0.006]
[1771315864491,1.25567965,1991.8,1990.6,0.006]
[1771315864693,0.4975,1991.7,1990.6,0.006]
[1771315866200,0.4975,1991.5,1990.6,0.006]
[1771315868205,1.75284798,1991.5,1990.6,0.006]
[1771315868374,0.4975,1991.4,1990.6,0.006]
[1771315870894,0.4975,1991.3,1990.6,0.006]
[1771315871293,0.4975,1991.5,1990.6,0.006]
[1771315871496,1.25525579,1991.7,1990.6,0.006]
[1771315871813,0.4975,1991.7,1990.6,0.006]
[1771315873021,0.4975,1991.6,1990.8,0.005]
[1771315873223,0.4986,1991.6,1990.8,0.005]
[1771315873916,0.4986,1991.6,1990.7,0.001]
[1771315874494,1.25533517,1991.5,1990.7,0.001]
[1771315874708,0.4975,1991.4,1990.7,0.001]
[1771315877133,0.4975,1991.3,1990.7,0.001]
[1771315878951,0.4975,1991.5,1990.7,0.006]
[1771315879132,0.0011,1991.6,1990.7,0.006]
[1771315880055,0.0011,1991.6,1991.1,0.005]
[1771315880432,0.0011,1991.6,1990.7,0.001]
[1771315880433,0.0011,1991.6,1991.3,0.005]
[1771315880629,0.0005,1991.8,1991.4,0.005]
[1771315881852,0.0011,1991.9,1991.2,30.0]
[1771315882064,0.0011,1991.9,1991.3,0.005]
[1771315882367,0.0011,1991.9,1991.5,0.005]
[1771315882651,0.0011,1991.9,1991.2,0.005]
[1771315882854,0.4986,1991.9,1991.1,3.845]
[1771315883028,0.4986,1991.9,1991.1,0.005]
[1771315883219,0.4986,1991.9,1990.9,0.005]
[1771315883424,0.4986,1991.9,1991.0,3.175031]
[1771315883843,0.4986,1991.9,1991.0,0.005]
[1771315885562,0.4986,1991.9,1991.5,0.001]
[1771315885746,0.0011,1991.7,1991.5,0.001]
[1771315886257,0.0011,1991.8,1991.5,0.001]
[1771315893252,0.49816544,1991.8,1991.5,0.001]
[1771315895274,0.0011,1991.8,1991.5,0.001]
[1771315897855,0.0011,1991.7,1991.5,0.001]
[1771315900575,0.0011,1992.0,1991.6,0.0128]
[1771315900779,0.49706544,1992.5,1991.6,0.0128]
[1771315901081,0.0011,1992.6,1991.6,0.0128]
[1771315902067,0.0011,1992.6,1991.8,0.0128]
[1771315904792,0.0011,1992.6,1991.9,1.26788308]
[1771315904994,0.4947,1992.6,1991.9,1.26788308]
[1771315906100,0.4947,1992.6,1991.9,1.25508308]
[1771315906596,0.4947,1992.6,1991.8,5.03313234]
[1771315906799,0.4947,1992.6,1991.9,0.0128]
[1771315909303,0.0011,1992.6,1992.0,1.26782008]
[1771315910374,0.0011,1992.5,1992.0,1.25502008]
[1771315912614,0.0011,1992.5,1992.0,1.26782008]
[1771315920484,0.0011,1992.5,1992.1,0.0128]
[1771315921834,0.0011,1992.5,1992.0,1.25502008]
[1771315923998,0.0011,1992.5,1992.1,0.001]
[1771315924203,0.0011,1992.4,1992.1,0.001]
[1771315930127,0.0011,1992.4,1992.1,0.0138]
[1771315930341,0.0011,1992.4,1992.1,0.001]
[1771315930342,0.49948031,1992.4,1992.1,0.001]
[1771315930492,0.0011,1992.4,1992.1,0.001]
[1771315938065,0.0011,1992.4,1992.2,0.001]
[1771315938342,0.0011,1992.3,1992.2,0.001]
[1771315944138,0.0011,1992.3,1992.2,0.0138]
[1771315944511,0.0011,1992.4,1992.3,1.25483109]
[1771315947552,0.0011,1992.4,1992.2,1.25585544]
[1771315947747,0.0011,1992.4,1992.2,0.001]
[1771315947957,0.0011,1992.4,1992.2,1.25588324]
[1771315948128,0.0011,1992.4,1992.2,0.001]
[1771315948338,0.4947,1992.4,1992.2,0.001]
[1771315948852,0.0011,1992.4,1992.2,0.001]
[1771315950851,0.0011,1992.4,1992.2,1.25589408]
[1771315952326,0.0011,1992.3,1992.2,1.25589408]
[1771315952550,0.0011,1992.3,1992.2,0.001]
[1771315954857,0.0011,1992.4,1992.2,0.0138]
[1771315955055,0.0011,1992.4,1992.3,1.25483109]
[1771315955462,0.0011,1992.4,1992.2,0.001]
[1771315955832,0.0011,1992.4,1992.2,1.25589028]
[1771315958858,0.0011,1992.4,1992.2,0.001]
[1771315963557,0.4947,1992.4,1992.2,0.001]
[1771315964061,0.0011,1992.5,1992.2,0.001]
[1771315966274,0.0011,1992.5,1992.3,0.001]
[1771315966772,0.0011,1992.4,1992.3,0.001]
[1771315973575,10.24,1993.3,1992.3,5.39606707]
[1771315973775,0.49475017,1993.4,1992.7,0.4516454]
[1771315974961,0.49475017,1993.3,1992.5,0.4516454]
[1771315975400,0.49475017,1993.3,1992.3,0.4526454]
[1771315975568,1.74907759,1993.1,1992.4,1.25476811]
[1771315976909,1.74907759,1993.1,1992.3,1.25579072]
[1771315977704,1.25432742,1993.1,1992.3,1.25579072]
[1771315977891,0.49475017,1993.0,1992.3,1.25579072]
[1771315978299,0.49475017,1992.9,1992.3,0.001]
[1771315978673,0.49475017,1992.9,1992.4,0.001]
[1771315979996,0.49475017,1992.7,1992.4,0.001]
[1771315981997,0.49475017,1993.0,1992.4,1.25576811]
[1771315982905,0.49475017,1993.2,1992.5,0.4516454]
[1771315983197,1.25534256,1993.3,1992.5,0.4516454]
[1771315983500,1.25534256,1993.3,1992.4,6.65083518]
[1771315983501,0.49475017,1993.2,1992.4,6.65083518]
[1771315984209,0.49475017,1993.2,1992.4,7.10248058]
[1771315985771,0.49475017,1993.1,1992.4,7.10248058]
[1771315986003,0.49475017,1993.1,1992.4,1.70741351]
[1771315986894,1.25434448,1993.1,1992.4,0.001]
[1771315987100,0.49475017,1993.0,1992.4,0.001]
[1771315989700,0.49475017,1992.9,1992.4,0.001]
[1771315991805,0.49475017,1992.9,1992.5,0.001]
[1771315995015,1.74920613,1992.9,1992.5,0.001]
[1771315995222,0.48903747,1992.8,1992.5,0.001]
[1771315995518,0.48903747,1992.7,1992.5,0.001]
[1771316000325,0.48903747,1992.6,1992.5,0.001]
[1771316001828,1.74360517,1992.8,1992.5,0.001]
[1771316002122,0.48903747,1992.7,1992.5,0.001]
[1771316002418,1.74364144,1992.7,1992.5,0.001]
[1771316002717,1.74364144,1992.7,1992.3,0.001]
[1771316002718,0.48903747,1992.6,1992.3,0.001]
[1771316003703,0.48903747,1992.8,1992.3,0.001]
[1771316003908,1.74355485,1992.8,1992.3,0.001]
[1771316004109,0.48903747,1992.7,1992.3,0.001]
[1771316005027,1.74362928,1992.7,1992.5,0.001]
[1771316006322,0.0011,1992.6,1992.5,0.001]
[1771316010808,0.49013747,1992.6,1992.4,0.001]
[1771316011015,0.49013747,1992.6,1992.2,0.001]
[1771316011215,0.49013747,1992.6,1992.0,0.001]
[1771316011216,0.48903747,1992.4,1992.0,0.001]
[1771316012231,0.48903747,1992.3,1992.0,0.001]
[1771316012436,0.48903747,1992.2,1991.8,0.001]
[1771316014033,1.25495708,1992.1,1991.8,0.001]
[1771316014937,1.74399455,1992.1,1991.8,0.001]
[1771316015133,5.88515762,1992.3,1991.8,0.001]
[1771316015436,1.25486101,1992.3,1991.8,0.001]
[1771316015731,1.74389848,1992.3,1991.8,0.001]
[1771316016625,0.48903747,1992.2,1991.8,0.001]
[1771316019146,1.74398848,1992.2,1991.8,0.001]
[1771316019532,1.74398848,1992.2,1991.9,0.001]
[1771316022831,1.25495101,1992.2,1991.9,0.001]
[1771316023031,0.48903747,1992.1,1991.6,0.001]
[1771316023236,0.48903747,1992.0,1991.6,0.001]
[1771316023946,1.74410084,1992.0,1991.6,0.001]
[1771316024828,0.46958584,1991.8,1991.6,0.001]
[1771316025215,1.72464921,1992.0,1991.6,0.001]
[1771316025945,0.46958584,1991.9,1991.6,0.001]
[1771316029473,1.25514609,1991.8,1991.6,0.001]
[1771316031362,1.25514609,1991.8,1991.7,0.001]
[1771316031363,1.73517308,1991.8,1991.7,0.001]
[1771316032153,1.73517308,1991.8,1991.5,0.001]
[1771316033364,1.25514609,1991.8,1991.5,0.001]
[1771316033524,0.48002699,1991.5,1991.2,0.001]
[1771316033730,1.25539821,1991.4,1991.2,0.001]
[1771316035682,1.25525962,1991.7,1991.2,0.48935061]
[1771316036180,0.48002699,1991.6,1991.2,0.001]
[1771316037243,1.25525962,1991.7,1991.2,0.001]
[1771316037449,1.25600184,1992.2,1991.5,0.48835061]
[1771316037653,1.25600184,1992.2,1991.6,1.74362275]
[1771316038079,1.25600184,1992.2,1991.6,1.25527214]
[1771316038277,1.25600184,1992.2,1991.7,0.48835061]
[1771316038984,0.0011,1992.2,1991.7,0.48835061]
[1771316039388,0.0011,1992.2,1991.9,0.48835061]
[1771316039751,0.0011,1992.2,1991.5,5.02129759]
[1771316039752,0.0011,1992.2,1991.5,5.02116943]
[1771316039978,0.0011,1992.2,1991.6,0.48835061]
[1771316041884,0.0011,1992.2,1991.8,0.48835061]
[1771316043706,0.0011,1992.1,1991.8,0.48835061]
[1771316043904,0.0011,1992.1,1992.0,0.48835061]
[1771316045006,0.0011,1992.1,1991.8,1.74345157]
[1771316045294,0.0011,1992.1,1991.7,5.02170845]
[1771316045295,0.0011,1992.1,1991.7,0.48935061]
[1771316045669,0.0011,1992.1,1991.7,1.74454932]